fUSD/lending_fUSD_20260408
["ID","MTS","AMOUNT","RATE_DAILY","PERIOD"]
[420012133,1775613039808,-500.0,0.00013698,2]
[420012134,1775613039818,-500.0,0.00013698,2]
[420012135,1775613039829,-500.0,0.00013698,2]
[420012136,1775613039839,-500.0,0.00013698,2]
[420012137,1775613039849,-500.45174561,0.00013698,2]
[420012138,1775613039859,-506.27982471,0.00013698,2]
[420012139,1775613039869,-500.0,0.00013698,2]
[420012140,1775613039879,-500.0,0.00013698,2]
[420012141,1775613039889,-500.0,0.00013698,2]
[420012142,1775613039899,-500.0,0.00013698,2]
[420012143,1775613039908,-502.25162067,0.00013698,2]
[420012144,1775613039918,-504.91692042,0.00013698,2]
[420012145,1775613039928,-500.0,0.00013698,2]
[420012146,1775613039938,-500.0,0.00013698,2]
[420012147,1775613039948,-500.0,0.00013698,2]
[420012148,1775613039957,-500.0,0.00013698,2]
[420012149,1775613039967,-500.0,0.00013698,2]
[420012150,1775613039978,-500.0,0.00013698,2]
[420012151,1775613039988,-506.80312562,0.00013698,2]
[420012152,1775613039997,-500.0,0.00013698,2]
[420012153,1775613040007,-500.0,0.00013698,2]
[420012154,1775613040017,-500.0,0.00013698,2]
[420012155,1775613040028,-500.0,0.00013698,2]
[420012156,1775613040037,-553.39225555,0.00013698,2]
[420012157,1775613040047,-500.0,0.00013698,2]
[420012158,1775613040057,-29.78320743,0.00013698,2]
[420012163,1775613040818,-470.21679257,0.00013698,2]
[420012164,1775613040828,-446.74565392,0.00013698,2]
[420012165,1775613040839,-53.25434608,0.00013698,2]
[420012166,1775613040849,-296.84638528,0.00013698,2]
[420012167,1775613040864,-203.15361472,0.00013698,2]
[420012168,1775613040874,-500.0,0.00013698,2]
[420012169,1775613040883,-500.0,0.00013698,2]
[420012170,1775613040893,-500.0,0.00013698,2]
[420012171,1775613040903,-226.76167304,0.00013698,2]
[420012172,1775613040915,-349.73684697,0.00013698,2]
[420012173,1775613040925,-510.20734962,0.00013698,2]
[420012174,1775613040935,-500.0,0.00013698,2]
[420012175,1775613040945,-500.0,0.00013698,2]
[420012176,1775613040954,-500.0,0.00013698,2]
[420012177,1775613040963,-500.0,0.00013698,2]
[420012178,1775613040973,-500.0,0.00013698,2]
[420012179,1775613040982,-500.0,0.00013698,2]
[420012180,1775613040991,-500.0,0.00013698,2]
[420012181,1775613041001,-500.0,0.00013698,2]
[420012182,1775613041011,-500.0,0.00013698,2]
[420012183,1775613041020,-500.0,0.00013698,2]
[420012184,1775613041029,-508.98990694,0.00013698,2]
[420012185,1775613041038,-500.0,0.00013698,2]
[420012186,1775613041047,-500.0,0.00013698,2]
[420012187,1775613041057,-500.0,0.00013698,2]
[420012188,1775613041066,-500.0,0.00013698,2]
[420012189,1775613041076,-500.0,0.00013698,2]
[420012190,1775613041086,-500.0,0.00013698,2]
[420012191,1775613041095,-500.0,0.00013698,2]
[420012192,1775613041105,-500.0,0.00013698,2]
[420012193,1775613041115,-500.0,0.00013698,2]
[420012194,1775613041125,-500.0,0.00013698,2]
[420012195,1775613041135,-500.0,0.00013698,2]
[420012196,1775613041145,-514.02389529,0.00013698,2]
[420012197,1775613041154,-500.0,0.00013698,2]
[420012198,1775613041164,-500.0,0.00013698,2]
[420012199,1775613041174,-500.0,0.00013698,2]
[420012200,1775613041183,-500.0,0.00013698,2]
[420012201,1775613041193,-500.0,0.00013698,2]
[420012202,1775613041203,-500.0,0.00013698,2]
[420012203,1775613041213,-500.0,0.00013698,2]
[420012204,1775613041223,-500.0,0.00013698,2]
[420012205,1775613041233,-587.62,0.00013698,2]
[420012206,1775613041243,-500.0,0.00013698,2]
[420012207,1775613041252,-500.0,0.00013698,2]
[420012208,1775613041262,-500.0,0.00013698,2]
[420012209,1775613041271,-500.0,0.00013698,2]
[420012210,1775613041281,-500.0,0.00013698,2]
[420012211,1775613041291,-456.31253008,0.00013698,2]
[420012212,1775613041304,-43.68746992,0.00013698,2]
[420012213,1775613041314,-500.0,0.00013698,2]
[420012214,1775613041324,-501.5074136,0.00013698,2]
[420012215,1775613041336,-92.95992712,0.00013698,2]
[420012216,1775613041347,-500.0,0.00013698,2]
[420012217,1775613041357,-500.0,0.00013698,2]
[420012218,1775613041366,-500.0,0.00013698,2]
[420012219,1775613041376,-500.0,0.00013698,2]
[420012220,1775613041386,-629.72113567,0.00013698,2]
[420012221,1775613041395,-500.0,0.00013698,2]
[420012222,1775613041405,-500.0,0.00013698,2]
[420012223,1775613041414,-500.0,0.00013698,2]
[420012224,1775613041424,-500.0,0.00013698,2]
[420012225,1775613041434,-500.0,0.00013698,2]
[420012226,1775613041444,-500.0,0.00013698,2]
[420012227,1775613041454,-500.0,0.00013698,2]
[420012228,1775613041464,-500.0,0.00013698,2]
[420012229,1775613041473,-500.0,0.00013698,2]
[420012230,1775613041484,-500.0,0.00013698,2]
[420012231,1775613041494,-500.0,0.00013698,2]
[420012232,1775613041504,-500.0,0.00013698,2]
[420012233,1775613041514,-500.0,0.00013698,2]
[420012234,1775613041524,-500.0,0.00013698,2]
[420012235,1775613041534,-500.0,0.00013698,2]
[420012236,1775613041544,-500.0,0.00013698,2]
[420012237,1775613041554,-500.0,0.00013698,2]
[420012238,1775613041563,-500.0,0.00013698,2]
[420012239,1775613041574,-500.0,0.00013698,2]
[420012240,1775613041584,-500.0,0.00013698,2]
[420012241,1775613041595,-500.0,0.00013698,2]
[420012242,1775613041604,-500.0,0.00013698,2]
[420012243,1775613041615,-500.0,0.00013698,2]
[420012244,1775613041624,-500.14075642,0.00013698,2]
[420012245,1775613041634,-500.0,0.00013698,2]
[420012246,1775613041644,-500.0,0.00013698,2]
[420012247,1775613041653,-500.0,0.00013698,2]
[420012248,1775613041662,-500.0,0.00013698,2]
[420012249,1775613041672,-500.0,0.00013698,2]
[420012250,1775613041681,-500.0,0.00013698,2]
[420012251,1775613041691,-500.0,0.00013698,2]
[420012252,1775613041700,-500.0,0.00013698,2]
[420012253,1775613041710,-500.03954485,0.00013698,2]
[420012254,1775613041719,-500.0,0.00013698,2]
[420012255,1775613041728,-500.0,0.00013698,2]
[420012256,1775613041737,-376.03207872,0.00013698,2]
[420012257,1775613041746,-500.0,0.00013698,2]
[420012258,1775613041756,-500.0,0.00013698,2]
[420012259,1775613041766,-500.0,0.00013698,2]
[420012260,1775613041775,-595.48595604,0.00013698,2]
[420012261,1775613041785,-562.70916657,0.00013698,2]
[420012262,1775613041794,-500.0,0.00013698,2]
[420012263,1775613041804,-531.81791081,0.00013698,2]
[420012264,1775613041814,-500.0,0.00013698,2]
[420012265,1775613041823,-500.0,0.00013698,2]
[420012266,1775613041833,-500.0,0.00013698,2]
[420012267,1775613041842,-500.0,0.00013698,2]
[420012268,1775613041852,-390.77484076,0.00013698,2]
[420012269,1775613041861,-500.0,0.00013698,2]
[420012270,1775613041871,-500.0,0.00013698,2]
[420012271,1775613041881,-500.0,0.00013698,2]
[420012272,1775613041891,-150.0,0.00013699,2]
[420012273,1775613041901,-2850.0,0.00013699,2]
[420012274,1775613041911,-150.0,0.00013699,2]
[420012275,1775613041921,-150.0,0.00013699,2]
[420012276,1775613041931,-150.0,0.00013699,2]
[420012277,1775613041940,-150.0,0.00013699,2]
[420012278,1775613041950,-150.0,0.00013699,2]
[420012279,1775613041960,-2138.0,0.00013699,2]
[420012280,1775613041970,-150.0,0.00013699,2]
[420012281,1775613041981,-150.0,0.00013699,2]
[420012282,1775613041990,-166.66,0.00013699,2]
[420012283,1775613042000,-200.0,0.00013699,2]
[420012284,1775613042010,-476.15,0.00013699,2]
[420012285,1775613042020,-396.8,0.00013699,2]
[420012286,1775613042030,-330.66,0.00013699,2]
[420012287,1775613042039,-275.55,0.00013699,2]
[420012288,1775613042049,-229.63,0.00013699,2]
[420012289,1775613042060,-191.36,0.00013699,2]
[420012290,1775613042070,-159.46,0.00013699,2]
[420012291,1775613042080,-797.34,0.00013699,2]
[420012292,1775613042091,-157.99377576,0.00013699,2]
[420012293,1775613042101,-500.0,0.00013699,2]
[420012294,1775613042110,-500.0,0.00013699,2]
[420012295,1775613042120,-500.0,0.00013699,2]
[420012296,1775613042130,-500.0,0.00013699,2]
[420012297,1775613042141,-500.0,0.00013699,2]
[420012298,1775613042152,-500.0,0.00013699,2]
[420012299,1775613042162,-500.0,0.00013699,2]
[420012300,1775613042172,-500.0,0.00013699,2]
[420012301,1775613042181,-500.0,0.00013699,2]
[420012302,1775613042191,-500.0,0.00013699,2]
[420012303,1775613042200,-500.0,0.00013699,2]
[420012304,1775613042210,-500.0,0.00013699,2]
[420012305,1775613042219,-500.0,0.00013699,2]
[420012306,1775613042228,-500.0,0.00013699,2]
[420012307,1775613042238,-241.84144484,0.00013699,2]
[420012308,1775613042248,-1000.0,0.00013699,2]
[420012309,1775613042258,-1000.0,0.00013699,15]
[420012310,1775613042267,-97981.19,0.000137,2]
[420012311,1775613042277,-1381.46419666,0.00013748,2]
[420012312,1775613042287,-160.0,0.00013751,2]
[420012313,1775613042296,-718.162702,0.00013751,2]
[420012314,1775613042306,-1276.325405,0.00013751,2]
[420012315,1775613042317,-500.0,0.00013769,2]
[420012316,1775613042327,-500.0,0.00013769,2]
[420012317,1775613042337,-168.0896,0.000138,2]
[420012318,1775613042346,-166.66,0.00013836,2]
[420012319,1775613042356,-1730.906522,0.00013841,2]
[420012320,1775613042365,-3301.813045,0.00013841,2]
[420012321,1775613042375,-160.0,0.00013841,7]
[420012322,1775613042384,-251.799831,0.00013841,7]
[420012323,1775613042395,-343.599663,0.00013841,7]
[420012324,1775613042404,-160.0,0.00013849,7]
[420012325,1775613042414,-478.407679,0.00013849,7]
[420012326,1775613042424,-796.815359,0.00013849,7]
[420012327,1775613042434,-24954.31464176,0.00013863,2]
[420012328,1775613042443,-16247.19863292,0.00013863,2]
[420012329,1775613042453,-271.982501,0.00013865,7]
[420012330,1775613042463,-150.0,0.00013932,2]
[420012331,1775613042473,-150.0,0.00013932,2]
[420012332,1775613042482,-150.11484194,0.00013932,2]
[420012333,1775613042492,-150.12907206,0.00013932,2]
[420012334,1775613042502,-150.0,0.00013932,2]
[420012335,1775613042512,-150.0,0.00013932,2]
[420012336,1775613042522,-150.0,0.00013932,2]
[420012337,1775613042531,-150.0,0.00013932,2]
[420012338,1775613042541,-150.0,0.00013932,2]
[420012339,1775613042551,-150.0,0.00013932,2]
[420012340,1775613042560,-150.0,0.00013932,2]
[420012341,1775613042569,-150.0,0.00013932,2]
[420012342,1775613042578,-150.13966067,0.00013932,2]
[420012343,1775613042588,-150.0,0.00013932,2]
[420012344,1775613042598,-5350.56182368,0.00013942,2]
[420012345,1775613042607,-250.33684328,0.00013961,2]
[420012346,1775613042617,-587.62,0.00013972,2]
[420012347,1775613042628,-150.0,0.00013973,2]
[420012348,1775613042638,-150.0,0.00013973,2]
[420012349,1775613042648,-150.0,0.00013973,2]
[420012350,1775613042657,-150.0,0.00013973,2]
[420012351,1775613042667,-150.0,0.00013973,2]
[420012352,1775613042677,-150.0,0.00013973,2]
[420012353,1775613042686,-150.0,0.00013973,2]
[420012354,1775613042696,-586.0,0.00013973,2]
[420012355,1775613042706,-166.66,0.00013973,2]
[420012356,1775613042715,-150.0,0.00013976,2]
[420012357,1775613042725,-150.0,0.00013981,2]
[420012358,1775613042734,-150.0,0.00013985,2]
[420012359,1775613042745,-28381.45321696,0.0001399,2]
[420012360,1775613042755,-515.28558372,0.00013994,2]
[420012361,1775613042764,-1000.0,0.00013994,2]
[420012362,1775613042775,-500.53661767,0.00013994,2]
[420012363,1775613042784,-1000.0,0.00013994,2]
[420012364,1775613042794,-150.0,0.00014005,2]
[420012365,1775613042803,-150.0,0.00014009,2]
[420012366,1775613042813,-150.0,0.0001402,2]
[420012367,1775613042823,-150.0,0.00014031,2]
[420012368,1775613042833,-150.0,0.00014038,2]
[420012369,1775613042843,-150.0,0.00014061,2]
[420012370,1775613042852,-150.0,0.00014064,2]
[420012371,1775613042863,-150.0,0.00014072,2]
[420012372,1775613042872,-150.0,0.00014079,2]
[420012373,1775613042882,-150.0,0.00014081,2]
[420012374,1775613042892,-150.0,0.00014086,2]
[420012375,1775613042902,-150.0,0.00014092,2]
[420012376,1775613042912,-150.0,0.00014108,2]
[420012377,1775613042921,-166.66,0.0001411,2]
[420012378,1775613042931,-166.67,0.0001412,2]
[420012379,1775613042940,-150.0,0.00014131,2]
[420012380,1775613042950,-150.0,0.00014145,2]
[420012381,1775613042960,-2351.0,0.00014148,2]
[420012382,1775613042969,-150.0,0.00014153,2]
[420012383,1775613042980,-150.0,0.00014153,2]
[420012384,1775613042990,-150.0,0.00014153,2]
[420012385,1775613043001,-150.0,0.00014164,2]
[420012386,1775613043011,-150.0,0.00014181,2]
[420012387,1775613043021,-150.0,0.00014189,2]
[420012388,1775613043031,-150.0,0.00014197,2]
[420012389,1775613043040,-150.0,0.00014198,2]
[420012390,1775613043050,-24954.31464176,0.0001421,2]
[420012391,1775613043060,-16247.19863292,0.0001421,2]
[420012392,1775613043071,-150.0,0.00014213,2]
[420012393,1775613043081,-1000.0,0.00014221,2]
[420012394,1775613043091,-150.0,0.00014226,2]
[420012395,1775613043101,-150.0,0.00014231,2]
[420012396,1775613043111,-150.0,0.00014241,2]
[420012397,1775613043122,-150.0,0.00014241,2]
[420012398,1775613043132,-587.62,0.00014246,2]
[420012399,1775613043142,-166.66,0.00014247,2]
[420012400,1775613043152,-150.0,0.00014247,2]
[420012401,1775613043163,-150.0,0.00014247,2]
[420012402,1775613043175,-150.0,0.00014247,2]
[420012403,1775613043186,-150.0,0.00014247,2]
[420012404,1775613043197,-150.0,0.00014247,2]
[420012405,1775613043207,-150.0,0.00014252,2]
[420012406,1775613043218,-150.0,0.00014281,2]
[420012407,1775613043228,-299.57,0.00014282,2]
[420012408,1775613043238,-150.0,0.00014285,2]
[420012409,1775613043249,-1889.59,0.00014291,2]
[420012411,1775613043259,-150.0,0.000143,2]
[420012412,1775613043269,-150.0,0.00014305,2]
[420012413,1775613043280,-150.0,0.00014318,2]
[420012414,1775613043291,-150.0,0.00014318,2]
[420012415,1775613043301,-1924.47,0.00014326,2]
[420012416,1775613043312,-150.0,0.0001433,2]
[420012417,1775613043323,-150.0,0.00014331,2]
[420012418,1775613043333,-150.0,0.00014354,2]
[420012419,1775613043343,-150.0,0.00014359,2]
[420012420,1775613043354,-150.0,0.00014374,2]
[420012421,1775613043364,-150.0,0.00014374,2]
[420012422,1775613043375,-150.0,0.00014374,2]
[420012423,1775613043384,-150.0,0.00014381,2]
[420012424,1775613043394,-166.66,0.00014384,2]
[420012425,1775613043405,-150.0,0.00014396,2]
[420012426,1775613043416,-1588.0,0.000144,2]
[420012427,1775613043426,-1573.0,0.000144,2]
[420012428,1775613043438,-996.0,0.000144,2]
[420012429,1775613043449,-150.0,0.00014412,2]
[420012430,1775613043461,-150.0,0.00014418,2]
[420012431,1775613043471,-150.0,0.00014431,2]
[420012432,1775613043481,-5350.56182368,0.00014431,2]
[420012433,1775613043492,-1468.969164,0.00014438,2]
[420012434,1775613043503,-150.0,0.00014447,2]
[420012435,1775613043513,-150.0,0.00014447,2]
[420012436,1775613043524,-150.0,0.00014462,2]
[420012437,1775613043536,-150.0,0.00014465,2]
[420012438,1775613043546,-150.0,0.00014473,2]
[420012439,1775613043884,-150.0,0.00014481,2]
[420012440,1775613043895,-150.0,0.00014494,2]
[420012441,1775613043906,-1620.6736,0.00014504,2]
[420012442,1775613043916,-150.0,0.00014506,2]
[420012443,1775613043928,-150.0,0.00014519,2]
[420012444,1775613043939,-4706.7984,0.0001452,2]
[420012445,1775613043950,-587.62,0.0001452,2]
[420012446,1775613043961,-4229.99246949,0.0001452,2]
[420012447,1775613043971,-150.0,0.00014521,2]
[420012448,1775613043982,-150.0,0.00014531,2]
[420012449,1775613043993,-2360.327076,0.00014533,2]
[420012450,1775613044004,-343.363407,0.00014533,7]
[420012451,1775613044015,-652.374109,0.00014541,7]
[420012452,1775613044026,-1500.0,0.00014542,2]
[420012453,1775613044037,-1001.79789242,0.00014542,2]
[420012454,1775613044047,-150.0,0.00014551,2]
[420012455,1775613044057,-150.0,0.00014551,2]
[420012456,1775613044069,-24954.31464176,0.00014558,2]
[420012457,1775613044079,-16247.19863292,0.00014558,2]
[420012458,1775613044090,-500.0,0.00014572,2]
[420012459,1775613044100,-500.0,0.00014572,2]
[420012460,1775613044110,-500.0,0.00014572,2]
[420012461,1775613044121,-500.0,0.00014572,2]
[420012462,1775613044132,-500.0,0.00014572,2]
[420012463,1775613044143,-500.0,0.00014572,2]
[420012464,1775613044154,-500.0,0.00014572,2]
[420012465,1775613044164,-500.0,0.00014572,2]
[420012466,1775613044175,-500.0,0.00014572,2]
[420012467,1775613044186,-197.481471,0.00014572,2]
[420012468,1775613044196,-500.0,0.00014572,2]
[420012469,1775613044206,-500.0,0.00014572,2]
[420012470,1775613044217,-500.0,0.00014572,2]
[420012471,1775613044228,-500.0,0.00014572,2]
[420012472,1775613044239,-150.0,0.00014572,2]
[420012473,1775613044250,-150.0,0.00014576,2]
[420012474,1775613044261,-150.0,0.00014581,2]
[420012475,1775613044271,-187.0,0.00014592,2]
[420012476,1775613044282,-150.0,0.00014595,2]
[420012477,1775613044293,-150.0,0.00014595,2]
[420012478,1775613044303,-150.0,0.00014595,2]
[420012479,1775613044314,-637.44938329,0.00014619,2]
[420012480,1775613044325,-964.0,0.0001462,2]
[420012481,1775613044335,-964.0,0.0001462,2]
[420012482,1775613044346,-964.0,0.0001462,2]
[420012483,1775613044357,-964.0,0.0001462,2]
[420012484,1775613044367,-964.0,0.0001462,2]
[420012485,1775613044378,-964.0,0.0001462,2]
[420012486,1775613044389,-964.0,0.0001462,2]
[420012487,1775613044399,-964.0,0.0001462,2]
[420012488,1775613044410,-964.0,0.0001462,2]
[420012489,1775613044421,-964.0,0.0001462,2]
[420012490,1775613044432,-964.0,0.0001462,2]
[420012491,1775613044442,-964.0,0.0001462,2]
[420012492,1775613044453,-964.0,0.0001462,2]
[420012493,1775613044464,-964.0,0.0001462,2]
[420012494,1775613044475,-964.0,0.0001462,2]
[420012495,1775613044485,-964.0,0.0001462,2]
[420012497,1775613044496,-150.0,0.0001462,2]
[420012499,1775613044506,-964.0,0.0001462,2]
[420012501,1775613044518,-964.0,0.0001462,2]
[420012504,1775613044528,-964.0,0.0001462,2]
[420012507,1775613044539,-964.0,0.0001462,2]
[420012509,1775613044549,-964.0,0.0001462,2]
[420012510,1775613044559,-964.0,0.0001462,2]
[420012511,1775613044570,-964.0,0.0001462,2]
[420012512,1775613044581,-985.24465103,0.0001462,2]
[420012513,1775613044591,-500.0,0.0001462,2]
[420012514,1775613044601,-500.0,0.0001462,2]
[420012515,1775613044611,-500.0,0.0001462,2]
[420012516,1775613044622,-500.0,0.0001462,2]
[420012517,1775613044632,-500.0,0.0001462,2]
[420012518,1775613044642,-500.0,0.0001462,2]
[420012519,1775613044652,-500.0,0.0001462,2]
[420012520,1775613044661,-500.0,0.0001462,2]
[420012521,1775613044671,-500.0,0.0001462,2]
[420012522,1775613044681,-500.0,0.0001462,2]
[420012523,1775613044691,-500.0,0.0001462,2]
[420012524,1775613044701,-381.23774932,0.0001462,2]
[420012525,1775613044711,-150.0,0.00014625,2]
[420012526,1775613044722,-150.0,0.00014628,2]
[420012527,1775613044731,-150.0,0.00014631,2]
[420012528,1775613044742,-150.0,0.00014635,2]
[420012529,1775613044751,-150.0,0.00014639,2]
[420012530,1775613044761,-150.0,0.00014669,2]
[420012531,1775613044771,-351.02,0.00014673,2]
[420012532,1775613044780,-150.0,0.00014679,2]
[420012533,1775613044790,-150.0,0.00014681,2]
[420012534,1775613044800,-150.0,0.00014683,2]
[420012535,1775613044809,-150.0,0.00014705,2]
[420012536,1775613044820,-150.0,0.00014705,2]
[420012537,1775613044830,-164.0,0.0001472,2]
[420012538,1775613044840,-1573.0,0.0001472,2]
[420012539,1775613044850,-150.0,0.00014728,2]
[420012540,1775613044860,-1600.0,0.0001473,2]
[420012541,1775613044870,-150.0,0.0001473,2]
[420012542,1775613044881,-150.0,0.00014732,2]
[420012543,1775613044891,-150.0,0.00014742,2]
[420012544,1775613044901,-433.0,0.00014767,2]
[420012545,1775613044911,-1503.61823881,0.00014768,2]
[420012546,1775613044921,-290.64579708,0.0001477,2]
[420012547,1775613044932,-150.0,0.00014772,2]
[420012548,1775613044942,-150.0,0.00014776,2]
[420012549,1775613044952,-150.0,0.0001478,2]
[420012550,1775613044961,-150.0,0.00014783,2]
[420012551,1775613044971,-150.0,0.00014786,2]
[420012552,1775613044981,-587.62,0.00014794,2]
[420012553,1775613044991,-553.81547268,0.00014795,2]
[420012554,1775613045001,-150.0,0.00014816,2]
[420012555,1775613045011,-150.0,0.00014816,2]
[420012556,1775613045021,-150.0,0.00014816,2]
[420012557,1775613045031,-500.0,0.00014822,2]
[420012558,1775613045041,-150.0,0.0001483,2]
[420012559,1775613045051,-150.0,0.00014834,2]
[420012560,1775613045060,-207.04815347,0.00014839,2]
[420012561,1775613045070,-150.0,0.00014839,2]
[420012562,1775613045080,-1573.0,0.00014859,2]
[420012563,1775613045090,-150.0,0.0001486,2]
[420012564,1775613045100,-150.0,0.0001486,2]
[420012565,1775613045110,-150.0,0.0001488,2]
[420012566,1775613045120,-150.0,0.0001489,2]
[420012567,1775613045130,-500.0,0.00014892,2]
[420012568,1775613045140,-514.14,0.00014892,2]
[420012569,1775613045150,-150.0,0.00014892,2]
[420012570,1775613045160,-9300.0,0.000149,5]
[420012571,1775613045170,-150.0,0.00014905,2]
[420012572,1775613045180,-24954.31464176,0.00014905,2]
[420012573,1775613045189,-16247.19863292,0.00014905,2]
[420012574,1775613045199,-5168.26892241,0.00014915,2]
[420012575,1775613045209,-5000.0,0.00014915,2]
[420012576,1775613045218,-5000.0,0.00014915,2]
[420012577,1775613045228,-5000.0,0.00014915,2]
[420012578,1775613045238,-5000.0,0.00014915,2]
[420012579,1775613045248,-150.0,0.00014917,2]
[420012580,1775613045258,-5350.56182368,0.00014921,2]
[420012581,1775613045268,-150.0,0.0001493,2]
[420012582,1775613045278,-299.57,0.00014931,2]
[420012583,1775613045288,-175.0,0.00014932,3]
[420012584,1775613045297,-150.0,0.00014938,2]
[420012585,1775613045307,-168.0,0.00014942,2]
[420012586,1775613045317,-150.0,0.00014946,2]
[420012587,1775613045329,-150.0,0.00014949,2]
[420012588,1775613045339,-150.0,0.00014963,2]
[420012589,1775613045349,-150.0,0.00014963,2]
[420012590,1775613045359,-150.0,0.0001498,2]
[420012591,1775613045369,-150.0,0.00014993,2]
[420012592,1775613045379,-150.0,0.00014999,2]
[420012593,1775613045389,-500.0,0.00015,2]
[420012594,1775613045399,-500.0,0.00015,2]
[420012595,1775613045408,-500.0,0.00015,2]
[420012596,1775613045418,-500.0,0.00015,2]
[420012597,1775613045429,-500.0,0.00015,2]
[420012598,1775613045439,-500.0,0.00015,2]
[420012599,1775613045451,-500.0,0.00015,2]
[420012600,1775613045461,-500.0,0.00015,2]
[420012601,1775613045471,-500.0,0.00015,2]
[420012602,1775613045482,-500.0,0.00015,2]
[420012603,1775613045492,-500.0,0.00015,2]
[420012604,1775613045502,-500.0,0.00015,2]
[420012605,1775613045512,-500.0,0.00015,2]
[420012606,1775613045521,-246.03,0.00015,2]
[420012607,1775613045532,-500.0,0.00015,2]
[420012608,1775613045542,-494.47,0.00015,2]
[420012609,1775613045552,-188.3608,0.00015,2]
[420012610,1775613045561,-150.0,0.00015015,2]
[420012611,1775613045571,-150.0,0.0001503,2]
[420012612,1775613045582,-578.20924308,0.00015031,2]
[420012613,1775613045592,-200.0,0.00015031,2]
[420012614,1775613045602,-500.0,0.00015031,2]
[420012615,1775613045611,-181.08010149,0.00015031,2]
[420012616,1775613045621,-8260.13072239,0.00015031,2]
[420012617,1775613045632,-1235.18214925,0.00015031,2]
[420012618,1775613045641,-623.58710448,0.00015031,2]
[420012619,1775613045651,-500.0,0.00015031,2]
[420012620,1775613045661,-500.0,0.00015031,2]
[420012621,1775613045671,-500.0,0.00015031,2]
[420012622,1775613045681,-500.0,0.00015031,2]
[420012623,1775613045691,-500.0,0.00015031,2]
[420012624,1775613045700,-151.0,0.00015031,2]
[420012625,1775613045710,-500.0,0.00015031,2]
[420012626,1775613045720,-151.0,0.00015031,2]
[420012627,1775613045730,-500.0,0.00015031,2]
[420012628,1775613045739,-151.0,0.00015031,2]
[420012629,1775613045749,-500.0,0.00015031,2]
[420012630,1775613045759,-151.0,0.00015031,2]
[420012631,1775613045769,-500.0,0.00015031,2]
[420012632,1775613045779,-157.93972627,0.00015031,2]
[420012633,1775613045788,-500.0,0.00015031,2]
[420012634,1775613045798,-500.0,0.00015031,2]
[420012635,1775613045807,-500.0,0.00015031,2]
[420012636,1775613045817,-246.4820278,0.00015031,2]
[420012637,1775613045827,-500.0,0.00015031,2]
[420012638,1775613045836,-205.09085742,0.00015031,2]
[420012639,1775613045846,-500.0,0.00015031,2]
[420012640,1775613045855,-3000.0,0.00015031,2]
[420012641,1775613045865,-500.0,0.00015031,2]
[420012642,1775613045875,-3000.0,0.00015031,2]
[420012643,1775613045884,-3000.0,0.00015031,2]
[420012644,1775613045894,-3000.0,0.00015031,2]
[420012645,1775613045904,-3000.0,0.00015031,2]